fUSD/lending_fUSD_20250128
["ID","MTS","AMOUNT","RATE_DAILY","PERIOD"]
[350653167,1738031442985,-419.81087525,0.00018,2]
[350653168,1738031443081,-7663.36559041,0.00018,2]
[350653169,1738031443137,-2542.98767302,0.00018,2]
[350653174,1738031445836,-150.0,0.00017866,2]
[350653175,1738031445845,-331.96507016,0.00018,2]
[350653176,1738031445856,-645.76666327,0.00018,2]
[350653177,1738031445867,-145682.70514483,0.00018,2]
[350653178,1738031445878,-1012.1184666,0.00018,2]
[350653179,1738031445954,-8413.025585,0.00018,2]
[350653180,1738031445965,-1264.76750391,0.00018,2]
[350653181,1738031446008,-8409.08145861,0.00018,2]
[350653182,1738031446065,-2743.94689906,0.00018,2]
[350653183,1738031446076,-8431.79872278,0.00018,2]
[350653184,1738031446087,-2073.26929706,0.00018,2]
[350653185,1738031446132,-4187.591535,0.00018,2]
[350653186,1738031446191,-8013.63173271,0.00018,2]
[350653563,1738031583235,578.69118681,0.00011831,2]
[350653564,1738031583527,578.69118681,0.00011883,2]
[350653565,1738031583845,578.69118681,0.00011873,2]
[350653566,1738031584117,578.69118681,0.00011889,2]
[350653567,1738031584419,578.69118681,0.0001191,2]
[350653568,1738031591189,200.0,0.00011908,2]
[350653569,1738031591502,200.0,0.00011845,2]
[350653570,1738031591810,200.0,0.00011867,2]
[350653571,1738031690797,158.06,0.00010137,2]
[350653573,1738031703150,9463.81438179,0.0001,2]
[350653592,1738032611978,152.77,0.00010137,2]
[350653596,1738032631917,-309.989999,0.00013,2]
[350653597,1738032632024,-240.010001,0.00013,2]
[350653598,1738032632033,-150.0,0.00013751,2]
[350653599,1738032632043,-150.0,0.000143,2]
[350653600,1738032632051,-60.41625178,0.00014502,2]
[350653601,1738032632063,-636.45374822,0.00014502,2]
[350653602,1738032632072,-1894.52557867,0.00014967,2]
[350653603,1738032632129,-3700.0,0.00014967,2]
[350653604,1738032636404,-747.34999,0.00014967,2]
[350653605,1738032636511,-170.15372863,0.00014967,2]
[350653606,1738032636520,-150.0,0.00014967,2]
[350653607,1738032636530,-600.0,0.00015,2]
[350653608,1738032636540,-581.1233977,0.00016164,2]
[350653609,1738032636549,-1006.86314233,0.000162,2]
[350653610,1738032636558,-168.20829316,0.00016212,2]
[350653612,1738032636567,-389.15,0.00016369,2]
[350653614,1738032636576,-150.0,0.0001663,2]
[350653616,1738032636585,-162.73,0.00016635,2]
[350653617,1738032636594,-162.73,0.00016651,2]
[350653618,1738032636603,-162.73,0.00016668,2]
[350653619,1738032636611,-162.73,0.00016685,2]
[350653620,1738032636620,-162.73,0.00016701,2]
[350653621,1738032636629,-150.29,0.00016716,2]
[350653622,1738032636638,-162.73,0.00016718,2]
[350653623,1738032636647,-696.87,0.00016766,2]
[350653624,1738032636656,-646.57,0.00016818,2]
[350653625,1738032636665,-250.0,0.00016826,2]
[350653626,1738032636674,-200.0,0.00016826,2]
[350653627,1738032636683,-3012.62,0.0001685,2]
[350653628,1738032636692,-200.0,0.00016878,2]
[350653629,1738032636701,-15159.9,0.00016969,2]
[350653630,1738032636711,-250.0,0.0001697,2]
[350653631,1738032636719,-1000.0,0.00016988,2]
[350653632,1738032636729,-650.0,0.00017,2]
[350653633,1738032636738,-331.26,0.00017169,30]
[350653634,1738032636747,-250.0,0.00017177,2]
[350653636,1738032636756,-375.61,0.00017269,2]
[350653638,1738032636766,-400.0,0.00017278,2]
[350653640,1738032636776,-862.93,0.00017278,2]
[350653642,1738032636785,-7333.0,0.0001729,2]
[350653644,1738032636794,-983.1,0.00017378,2]
[350653646,1738032636803,-151.25,0.00017378,2]
[350653648,1738032636812,-150.0,0.00017678,2]
[350653650,1738032636820,-1965.38,0.00017678,2]
[350653652,1738032636830,-300.0,0.000177,6]
[350653654,1738032636839,-170.21,0.00017749,2]
[350653656,1738032636848,-1888.082,0.000178,2]
[350653658,1738032636858,-150.0,0.000178,2]
[350653659,1738032636866,-150.31,0.000178,2]
[350653661,1738032636876,-300.0,0.000178,2]
[350653662,1738032636885,-31588.9376,0.000178,2]
[350653663,1738032636894,-180.1929,0.000178,2]
[350653664,1738032636903,-700.0,0.000178,6]
[350653665,1738032636912,-2673.70056,0.0001782,2]
[350653666,1738032636925,-25687.90837818,0.0001788,3]
[350653667,1738032636937,-14312.09162182,0.0001788,3]
[350653668,1738032636946,-21897.82780828,0.00017888,2]
[350653669,1738032636955,-3738.1061,0.00017898,2]
[350653670,1738032636963,-481.049,0.00017898,2]
[350653671,1738032636972,-425.67786747,0.00017899,2]
[350653672,1738032636981,-5000.0,0.000179,2]
[350653673,1738032636990,-304.069,0.000179,2]
[350653674,1738032636999,-157.8381,0.000179,2]
[350653675,1738032637008,-4512.1796,0.000179,2]
[350653676,1738032637017,-1000.0,0.000179,2]
[350653677,1738032637025,-4673.0251,0.000179,2]
[350653678,1738032637034,-21004.8043,0.000179,2]
[350653679,1738032637043,-220.0,0.000179,2]
[350653680,1738032637053,-688.86,0.000179,31]
[350653681,1738032637062,-688.86,0.000179,31]
[350653682,1738032637071,-688.86,0.000179,31]
[350653683,1738032637080,-688.86,0.000179,31]
[350653684,1738032637089,-688.86,0.000179,31]
[350653685,1738032637098,-688.86,0.000179,31]
[350653686,1738032637108,-688.86,0.000179,31]
[350653687,1738032637119,-688.86,0.000179,31]
[350653688,1738032637128,-688.86,0.000179,31]
[350653689,1738032637137,-688.86,0.000179,31]
[350653690,1738032637147,-688.86,0.000179,31]
[350653691,1738032637156,-688.86,0.000179,31]
[350653692,1738032637165,-688.86,0.000179,31]
[350653693,1738032637174,-688.86,0.000179,31]
[350653694,1738032637184,-688.86,0.000179,31]
[350653695,1738032637193,-688.86,0.000179,31]
[350653696,1738032637203,-1000.0,0.000179,6]
[350653697,1738032637213,-303.74328558,0.00017973,2]
[350653698,1738032637222,-504.43910882,0.00017973,2]
[350653699,1738032637232,-181.7947469,0.00017982,2]
[350653700,1738032637241,-190.26137434,0.0001799,2]
[350653701,1738032637250,-326458.22219858,0.00017994,2]
[350653707,1738032637876,-237895.30382238,0.00017994,2]
[350653708,1738032637974,-928.50576371,0.00017994,2]
[350653709,1738032638203,-15443.32827869,0.00017994,2]
[350653710,1738032638214,-21352.9479658,0.00017994,2]
[350653711,1738032638226,-60822.02227277,0.00017994,2]
[350653712,1738032638258,-1207.10501415,0.00017994,2]
[350653731,1738032640029,-15381.33123423,0.00017994,2]
[350653732,1738032640041,-168286.94454194,0.00017994,2]
[350653733,1738032640050,-4840.50771299,0.00017998,5]
[350653734,1738032640081,-12210.74810465,0.00017998,5]
[350653735,1738032640135,-1101.98242668,0.00017998,5]
[350653736,1738032640146,-4053.89896807,0.00017998,5]
[350653737,1738032640242,-283.65934247,0.00017998,5]
[350653738,1738032640251,-26.84065753,0.00018,2]
[350653739,1738032640263,-4093.47834983,0.00018,2]
[350653740,1738032640274,-1159.43243568,0.00018,2]
[350653741,1738032640285,-4980.16031994,0.00018,2]
[350653742,1738032640296,-11148.5019612,0.00018,2]
[350653743,1738032640307,-475.8703,0.00018,2]
[350653744,1738032640318,-20910.00603859,0.00018,2]
[350653745,1738032640352,-59578.08436193,0.00018,2]
[350653746,1738032640363,-542.59004501,0.00018,2]
[350653747,1738032640461,-456.875,0.00018,2]
[350653748,1738032640472,-381.28266465,0.00018,2]
[350653771,1738032643081,-956.75,0.00018,2]
[350653773,1738032643092,-1324.08525546,0.00018,2]
[350653776,1738032643103,-18587.40094578,0.00018,2]
[350653777,1738032643119,-12293.7488,0.00018,2]
[350653778,1738032643129,-6332.2849218,0.00018,2]
[350653779,1738032643139,-622.96947986,0.00018,2]
[350653780,1738032643151,-2306.71483423,0.00018,2]
[350653781,1738032643162,-7133.64362223,0.00018,2]
[350653782,1738032643172,-422.90000105,0.00018,2]
[350653783,1738032643183,-732.39709636,0.00018,2]
[350653784,1738032643194,-135761.00524484,0.00018,2]
[350653785,1738032643206,-2079.02430681,0.00018,2]
[350653786,1738032643217,-25893.7019215,0.00018,2]
[350653787,1738032643231,-915.8578481,0.00018,2]
[350653788,1738032643244,-7324.45326486,0.00018,2]
[350653789,1738032643289,-50729.5206543,0.00018,2]
[350653790,1738032643300,-211.0,0.00018,2]
[350653791,1738032643313,-200.0,0.00018,2]
[350653792,1738032643324,-200.0,0.00018,2]
[350653793,1738032643335,-163.34645678,0.00018,2]
[350653794,1738032643349,-36.65354322,0.00018,2]
[350653795,1738032643359,-200.0,0.00018,2]
[350653796,1738032643369,-200.0,0.00018,2]
[350653797,1738032643379,-371.91618678,0.00018,2]
[350653798,1738032643390,-351.04387561,0.00018,2]
[350653799,1738032643403,-1668.84497925,0.00018,2]
[350653903,1738032646004,-43024.19495836,0.00018,2]
[350653904,1738032646015,-6321.48424982,0.00018,2]
[350653905,1738032646058,-1330.09143926,0.00018,2]
[350653906,1738032646070,-357651.53529615,0.00018,2]
[350653907,1738032646166,-194826.46752269,0.00018,2]
[350653908,1738032646178,-2048.11029881,0.00018,2]
[350653909,1738032646274,-2743.94689906,0.00018,2]
[350654068,1738032664017,1906.63495506,0.00011848,2]
[350654069,1738032664308,1906.63495506,0.00011856,2]
[350654070,1738032664599,1906.63495506,0.00011894,2]
[350654071,1738032664848,1906.63495506,0.00011894,2]
[350654072,1738032665243,1906.63495506,0.00011905,2]
[350654073,1738032724913,76623.69539639,0.00011872,2]
[350654074,1738032725175,76623.69539639,0.0001189,2]
[350654075,1738032725461,76623.69539639,0.00011869,2]
[350654076,1738032725754,76623.69539639,0.00011919,2]
[350654077,1738032726080,76623.69539639,0.0001187,2]
[350654078,1738032732647,1857.06796624,0.00011863,2]
[350654079,1738032732943,1857.06796624,0.00011889,2]
[350654080,1738032733265,1857.06796624,0.00011836,2]
[350654081,1738032733540,1857.06796624,0.00011833,2]
[350654082,1738032733836,1857.06796624,0.00011831,2]
[350654083,1738032739555,473.95756064,0.00011881,2]
[350654084,1738032739837,473.95756064,0.00011917,2]
[350654085,1738032740091,473.95756064,0.00011859,2]
[350654086,1738032740357,473.95756064,0.00011906,2]
[350654087,1738032740637,473.95756064,0.00011919,2]
[350654088,1738032745723,1873.33775849,0.00011916,2]
[350654089,1738032746139,1873.33775849,0.00011882,2]
[350654090,1738032746284,1873.33775849,0.00011904,2]
[350654091,1738032746551,1873.33775849,0.00011838,2]
[350654092,1738032746843,1873.33775849,0.00011867,2]
[350654093,1738032753764,4083.43385957,0.00011842,2]
[350654094,1738032754032,4083.43385957,0.00011845,2]
[350654095,1738032754279,4083.43385957,0.00011852,2]
[350654096,1738032754565,4083.43385957,0.00011833,2]
[350654097,1738032754871,4083.43385957,0.00011885,2]
[350654098,1738032761856,200.0,0.00011884,2]
[350654099,1738032762008,200.0,0.00011841,2]
[350654100,1738032769535,8330.84088668,0.00011911,2]
[350654101,1738032769801,8330.84088668,0.00011894,2]
[350654102,1738032770398,8330.84088668,0.00011888,2]
[350654103,1738032770734,8330.84088668,0.00011846,2]
[350654104,1738032770997,8330.84088668,0.00011833,2]
[350654105,1738032785127,31088.53146685,0.00011827,2]
[350654106,1738032785521,31088.53146685,0.00011891,2]
[350654107,1738032785781,31088.53146685,0.00011887,2]
[350654108,1738032786053,31088.53146685,0.00011914,2]
[350654109,1738032786334,31088.53146685,0.0001191,2]
[350654110,1738032792648,200.0,0.00011907,2]
[350654111,1738032792922,200.0,0.00011872,2]
[350654112,1738032793206,200.0,0.00011832,2]
[350654113,1738032793479,200.0,0.0001186,2]
[350654114,1738032993672,154.42,0.00021,120]
[350654120,1738033627491,200.0,0.00011907,2]
[350654135,1738033663038,247.6,0.00010137,2]
[350654137,1738033683257,688.68151699,0.00011842,2]
[350654138,1738033683538,688.68151699,0.00011863,2]
[350654139,1738033683901,688.68151699,0.00011857,2]
[350654140,1738033684324,688.68151699,0.00011835,2]
[350654141,1738033684501,688.68151699,0.00011897,2]
[350654143,1738033832230,-670.2,0.00014523,2]
[350654144,1738033832240,-150.0,0.00014998,2]
[350654145,1738033832249,-150.0,0.00015688,2]
[350654146,1738033832259,-150.0,0.00015976,2]
[350654147,1738033832268,-414.3753,0.00016415,2]
[350654148,1738033832278,-585.6247,0.00016415,2]
[350654149,1738033832287,-54.275428,0.00016422,2]
[350654150,1738033832301,-290.774572,0.00016422,2]
[350654151,1738033832309,-1307.7636103,0.00016424,2]
[350654152,1738033832321,-499.34874343,0.00016424,2]
[350654153,1738033832340,-6680.37764627,0.00016424,2]
[350654154,1738033832349,-300.0,0.00016428,2]
[350654155,1738033832359,-250.0,0.00016429,2]
[350654156,1738033832368,-186.33,0.0001643,2]
[350654157,1738033832377,-150.0,0.00016433,2]
[350654158,1738033832387,-508.59,0.00016591,2]
[350654159,1738033832396,-670.2,0.00016787,2]
[350654160,1738033832405,-247.6,0.00016813,2]
[350654161,1738033832414,-1005.0,0.00016912,2]
[350654162,1738033832423,-1110.304,0.00016912,2]
[350654163,1738033832432,-9624.0,0.00017,7]
[350654164,1738033832443,-235.52,0.00017082,2]
[350654165,1738033832453,-235.52,0.00017087,2]
[350654166,1738033832462,-235.52,0.00017091,2]
[350654167,1738033832472,-235.52,0.00017096,2]
[350654168,1738033832482,-235.52,0.000171,2]
[350654169,1738033832491,-235.52,0.00017105,2]
[350654170,1738033832501,-235.52,0.00017109,2]
[350654171,1738033832511,-235.52,0.00017114,2]
[350654172,1738033832524,-1884.73,0.00017115,2]
[350654173,1738033832533,-235.52,0.00017118,2]
[350654174,1738033832542,-235.52,0.00017123,2]
[350654175,1738033832552,-300.0,0.00017127,2]
[350654176,1738033832561,-235.52,0.00017127,2]
[350654177,1738033832571,-235.52,0.00017132,2]
[350654178,1738033832580,-235.52,0.00017136,2]
[350654179,1738033832589,-235.52,0.00017141,2]
[350654180,1738033832599,-235.52,0.00017145,2]
[350654181,1738033832608,-235.52,0.00017149,2]
[350654182,1738033832618,-235.52,0.00017154,2]
[350654183,1738033832627,-235.52,0.00017158,2]
[350654184,1738033832636,-235.52,0.00017163,2]
[350654185,1738033832645,-235.52,0.00017167,2]
[350654186,1738033832654,-198.67,0.00017252,2]
[350654187,1738033832664,-20.82895373,0.00017281,2]
[350654188,1738033832676,-179.17104627,0.00017281,2]
[350654189,1738033832685,-452.59,0.00017288,2]
[350654190,1738033832694,-200.0,0.00017307,2]
[350654191,1738033832703,-150.0,0.00017319,2]
[350654192,1738033832712,-150.0,0.00017351,2]
[350654193,1738033832722,-250.0,0.00017424,2]
[350654194,1738033832731,-351.73,0.00017585,30]
[350654195,1738033832740,-150.0,0.00017618,2]
[350654196,1738033832750,-150.0,0.00017696,2]
[350654197,1738033832759,-438.93,0.00017781,2]
[350654198,1738033832767,-773.87,0.00017781,2]
[350654200,1738033832776,-773.87,0.00017781,2]
[350654201,1738033832785,-438.93,0.00017781,2]
[350654202,1738033832794,-773.87,0.00017781,2]
[350654203,1738033832803,-438.93,0.00017781,2]
[350654204,1738033832811,-438.93,0.00017781,2]
[350654205,1738033832820,-773.87,0.00017781,2]
[350654207,1738033832830,-438.93,0.00017781,2]
[350654209,1738033832839,-773.87,0.00017781,2]
[350654211,1738033832847,-773.96,0.00017781,2]
[350654213,1738033832856,-150.0,0.0001781,2]
[350654215,1738033832865,-300.0,0.00017817,2]
[350654217,1738033832874,-150.0,0.00017835,2]
[350654218,1738033832884,-1388.3778,0.00017863,2]
[350654220,1738033832892,-622.56,0.00017867,2]
[350654222,1738033832902,-297.14,0.00017867,2]
[350654224,1738033832911,-150.0,0.00017867,2]
[350654226,1738033832920,-150.0,0.00017867,2]
[350654228,1738033832930,-983.1,0.00017867,2]
[350654230,1738033832939,-983.1,0.00017867,2]
[350654231,1738033832948,-983.1,0.00017867,2]
[350654232,1738033832957,-983.1,0.00017867,2]
[350654233,1738033832967,-983.1,0.00017867,2]
[350654234,1738033832976,-983.1,0.00017867,2]
[350654235,1738033832986,-983.1,0.00017867,2]
[350654236,1738033832995,-1962.6,0.00017867,2]
[350654237,1738033833007,-186.62,0.00017884,2]
[350654238,1738033833016,-151.01,0.00017888,2]
[350654239,1738033833025,-150.37,0.00017888,2]
[350654240,1738033833035,-438.12,0.00017888,2]
[350654241,1738033833045,-438.12,0.00017888,2]
[350654243,1738033833055,-438.12,0.00017888,2]
[350654244,1738033833066,-437.08,0.00017888,2]
[350654246,1738033833075,-220.0,0.000179,2]
[350654248,1738033833085,-773.87,0.000179,2]
[350654250,1738033833094,-438.93,0.000179,2]
[350654252,1738033833104,-2956.7745,0.000179,2]
[350654254,1738033833113,-578.69,0.000179,31]
[350654257,1738033833124,-578.69,0.000179,31]
[350654259,1738033833135,-578.69,0.000179,31]
[350654261,1738033833144,-578.69,0.000179,31]
[350654262,1738033833153,-578.69,0.000179,31]
[350654264,1738033833162,-578.69,0.000179,31]
[350654266,1738033833171,-578.69,0.000179,31]
[350654268,1738033833181,-578.69,0.000179,31]
[350654270,1738033833190,-578.69,0.000179,31]
[350654272,1738033833199,-578.69,0.000179,31]
[350654274,1738033833208,-578.69,0.000179,31]
[350654276,1738033833217,-578.69,0.000179,31]
[350654278,1738033833227,-578.69,0.000179,31]
[350654280,1738033833236,-578.69,0.000179,31]
[350654282,1738033833245,-578.69,0.000179,31]
[350654284,1738033833256,-578.69,0.000179,31]
[350654286,1738033833266,-5000.0,0.000179,2]
[350654288,1738033833276,-500.0,0.000179,2]
[350654290,1738033833286,-200.0,0.000179,6]
[350654292,1738033833295,-2270.2593,0.000179,2]
[350654294,1738033833305,-528.4686,0.000179,2]
[350654296,1738033833315,-2500.0,0.000179,2]
[350654298,1738033833324,-1220.9272,0.000179,2]
[350654300,1738033833334,-150.0,0.00017934,2]
[350654302,1738033833343,-420.0,0.00017953,2]
[350654304,1738033833353,-501.32524562,0.00017973,2]
[350654306,1738033833362,-261.05225994,0.00017973,2]
[350654308,1738033833372,-170.04383098,0.00017973,2]
[350654310,1738033833381,-201.19134487,0.00017973,2]
[350654312,1738033833390,-502.01232722,0.00017973,2]
[350654313,1738033833399,-472.67798953,0.00017973,2]
[350654315,1738033833408,-500.0,0.00017973,2]
[350654316,1738033833418,-150.0,0.00017974,2]
[350654318,1738033833429,-508.65,0.00017994,2]
[350654320,1738033833439,-1781.331,0.00017994,2]
[350654322,1738033833453,-159.74199286,0.00017994,2]
[350654324,1738033833463,-150.0,0.00017995,2]
[350654326,1738033833472,-403.32019285,0.00017999,2]
[350654328,1738033833483,-500.0,0.00017999,2]
[350654330,1738033833492,-159.12686797,0.00017999,2]
[350654332,1738033833503,-187.4504062,0.00017999,2]
[350654334,1738033833512,-273.64710312,0.00017999,2]
[350654336,1738033833524,-559519.16248377,0.00018,2]
[350654348,1738033833640,-181891.6937131,0.00018,2]
[350654350,1738033833649,-1026.45,0.00018,2]
[350654352,1738033833658,-2228.0838,0.00018,2]
[350654354,1738033833668,-109661.30669345,0.00018,2]
[350654356,1738033833677,-186.39200981,0.00018,2]
[350654358,1738033833687,-379.70623359,0.00018,2]
[350654360,1738033833696,-200.0,0.0001805,2]
[350654362,1738033833706,-150.0,0.00018056,2]
[350654364,1738033833715,-2000.0,0.00018082,2]
[350654366,1738033833725,-438.93,0.000181,2]
[350654368,1738033833734,-500.0,0.000181,6]
[350654370,1738033833744,-150.0,0.00018116,2]
[350654372,1738033833754,-172.69,0.00018126,2]
[350654374,1738033833764,-150.0,0.00018136,2]
[350654376,1738033833773,-300.24,0.00018138,2]
[350654377,1738033833782,-150.0,0.00018149,2]
[350654379,1738033833792,-177.59,0.0001818,2]
[350654381,1738033833801,-178.46,0.00018194,2]
[350654383,1738033833811,-700.0,0.000182,6]
[350654385,1738033833822,-878.19,0.00018247,2]
[350654387,1738033833831,-150.0,0.00018259,2]
[350654389,1738033833841,-150.0,0.00018288,2]
[350654391,1738033833850,-1000.0,0.000183,6]
[350654393,1738033833859,-500.0,0.00018358,2]
[350654395,1738033833870,-502.0,0.00018384,2]
[350654397,1738033833879,-150.0,0.00018384,2]
[350654399,1738033833888,-1300.0,0.000184,6]
[350654401,1738033833898,-150.0,0.00018428,2]
[350654403,1738033833907,-150.0,0.00018439,2]
[350654405,1738033833917,-150.0,0.00018449,2]
[350654407,1738033833927,-500.0,0.00018458,2]
[350654409,1738033833936,-1000.0,0.00018467,2]
[350654411,1738033833945,-200.0,0.000185,6]
[350654413,1738033833954,-150.0,0.00018503,2]
[350654415,1738033833963,-521.81837649,0.00018521,2]
[350654417,1738033833973,-150.0,0.00018522,2]
[350654419,1738033833982,-150.0,0.00018529,2]
[350654421,1738033833991,-150.0,0.00018537,2]
[350654422,1738033834000,-500.0,0.00018558,2]
[350654424,1738033834010,-438.99,0.00018567,2]
[350654426,1738033834020,-1470.8,0.00018567,2]
[350654428,1738033834030,-167.91,0.00018579,2]
[350654430,1738033834040,-151.69371315,0.0001859,2]
[350654432,1738033834050,-150.0,0.00018595,2]
[350654434,1738033834059,-10133.48635943,0.000186,2]
[350654436,1738033834068,-34594.26700978,0.000186,2]
[350654438,1738033834081,-1089.69,0.000186,2]
[350654441,1738033834093,-1241.2400007,0.000186,2]
[350654443,1738033834105,-119525.00100476,0.000186,2]
[350654445,1738033834116,-9965.66742336,0.000186,2]
[350654744,1738033838200,-1778.89823074,0.000186,2]
[350654745,1738033838212,-543.48961775,0.000186,2]
[350654746,1738033838223,-5508.92049053,0.000186,2]
[350654747,1738033838254,-251.47,0.000186,2]
[350654748,1738033838308,-832.25,0.000186,2]
[350654749,1738033838320,-3264.13760739,0.000186,2]
[350654877,1738033840202,-1600.99999997,0.000186,2]
[350654878,1738033840213,-176899.59740289,0.000186,2]
[350654879,1738033840225,-123748.49320985,0.000186,2]
[350654880,1738033840234,-19234.83336246,0.000186,2]
[350654881,1738033840243,-52305.73912391,0.000186,2]
[350654882,1738033840254,-200.0,0.000186,6]
[350654883,1738033840264,-150.0,0.00018625,2]
[350654884,1738033840273,-500.0,0.0001863,2]
[350654885,1738033840283,-500.0,0.0001863,2]
[350654886,1738033840294,-500.0,0.0001863,2]
[350654887,1738033840304,-500.0,0.0001863,2]
[350654888,1738033840313,-500.0,0.0001863,2]
[350654889,1738033840322,-500.0,0.0001863,2]
[350654890,1738033840331,-500.0,0.0001863,2]
[350654891,1738033840341,-500.0,0.0001863,2]
[350654892,1738033840350,-500.0,0.0001863,2]
[350654893,1738033840360,-500.0,0.0001863,2]
[350654894,1738033840370,-508.46251232,0.0001863,2]
[350654895,1738033840379,-500.0,0.0001863,2]
[350654896,1738033840389,-500.0,0.0001863,2]
[350654897,1738033840399,-500.0,0.0001863,2]
[350654898,1738033840408,-500.0,0.0001863,2]
[350654899,1738033840418,-617.71110043,0.0001863,2]
[350654900,1738033840427,-500.0,0.0001863,2]
[350654901,1738033840437,-500.0,0.0001863,2]
[350654902,1738033840448,-500.0,0.0001863,2]
[350654903,1738033840457,-500.0,0.0001863,2]
[350654904,1738033840467,-500.0,0.0001863,2]
[350654905,1738033840476,-510.96777325,0.0001863,7]
[350654906,1738033840487,-500.0,0.0001865,2]
[350654907,1738033840496,-500.0,0.00018658,2]
[350654908,1738033840507,-200.0,0.000187,6]
[350654909,1738033840516,-348.66492383,0.000187,2]
[350654910,1738033840528,-185.68972708,0.000187,2]
[350654911,1738033840538,-150.0,0.00018733,2]
[350654912,1738033840547,-983.1,0.0001874,2]
[350654913,1738033840557,-438.12,0.0001874,2]
[350654914,1738033840567,-150.0,0.0001874,2]
[350654915,1738033840576,-150.0,0.0001874,2]
[350654916,1738033840586,-438.12,0.0001874,2]
[350654917,1738033840596,-983.1,0.0001874,2]
[350654918,1738033840605,-150.0,0.0001874,2]
[350654919,1738033840614,-150.0,0.0001874,2]
[350654920,1738033840623,-438.12,0.0001874,2]
[350654921,1738033840632,-983.1,0.0001874,2]
[350654922,1738033840642,-150.0,0.0001874,2]
[350654923,1738033840651,-150.0,0.0001874,2]
[350654924,1738033840660,-150.0,0.0001874,2]
[350654925,1738033840669,-150.0,0.0001874,2]
[350654926,1738033840679,-438.12,0.0001874,2]
[350654928,1738033840688,-983.1,0.0001874,2]
[350654930,1738033840698,-150.0,0.0001874,2]
[350654932,1738033840707,-438.12,0.0001874,2]
[350654934,1738033840716,-375.76,0.0001874,2]
[350654936,1738033840726,-2000.0,0.00018751,2]
[350654937,1738033840735,-500.0,0.00018758,2]
[350654938,1738033840744,-5604.0,0.00018767,2]
[350654939,1738033840753,-150.0,0.00018772,2]
[350654940,1738033840762,-500.0,0.00018773,2]
[350654941,1738033840771,-150.0,0.00018792,2]
[350654942,1738033840781,-894.4701936,0.00018793,2]
[350654943,1738033840790,-3524.3283825,0.00018793,2]
[350654944,1738033840799,-500.0,0.00018799,2]
[350654945,1738033840809,-500.0,0.00018799,2]
[350654946,1738033840818,-500.0,0.00018799,2]
[350654947,1738033840828,-191.77041718,0.00018799,2]
[350654948,1738033840837,-516.72,0.00018799,2]
[350654949,1738033840847,-500.0,0.00018799,2]
[350654950,1738033840857,-500.0,0.00018799,2]
[350654951,1738033840867,-500.0,0.00018799,2]
[350654952,1738033840877,-571.36447233,0.00018799,2]
[350654953,1738033840886,-101738.06568379,0.000188,2]
[350654954,1738033840899,-79690.64677818,0.000188,2]
[350654955,1738033840910,-110085.76685547,0.000188,2]
[350654956,1738033840922,-259.71546597,0.000188,2]
[350654957,1738033840933,-9254.42317369,0.000188,2]
[350654958,1738033840945,-321.065,0.000188,2]
[350654967,1738033843189,-74164.38696688,0.000188,2]
[350654968,1738033843200,-4079.34492294,0.000188,2]
[350654969,1738033843348,-1817.67063,0.000188,2]
[350654970,1738033843360,-1765.7713395,0.000188,2]